[Event "Schack-SM 2024: Mastarklassen"]
[Site "Fortnox Arena, Hejaregatan 5, Vaxjo, Sweden"]
[Date "2024.07.03"]
[Round "5.1"]
[White "Ljung, Harald"]
[Black "Bjorkman, Filip"]
[Result "1-0"]
[TimeControl "90 minutes for 40 moves + 30 minutes for the rest of the game + 30 seconds per move from move one."]
[WhiteElo "2101"]
[BlackElo "2116"]

1. Nf3 {[%clk 01:30:53]} {[%emt 00:00:06]} Nf6 {[%clk 01:30:52]} {[%emt
00:00:09]} 2. c4 {[%clk 01:30:12]} {[%emt 00:01:11]} g6 {[%clk 01:29:25]}
{[%emt 00:01:57]} 3. g3 {[%clk 01:30:10]} {[%emt 00:00:32]} c6 {[%clk
01:29:42]} {[%emt 00:00:13]} 4. Bg2 {[%clk 01:30:30]} {[%emt 00:00:11]} Bg7
{[%clk 01:30:04]} {[%emt 00:00:08]} 5. O-O {[%clk 01:30:42]} {[%emt 00:00:18]}
O-O {[%clk 01:30:25]} {[%emt 00:00:08]} 6. d3 {[%clk 01:27:15]} {[%emt
00:03:57]} d5 {[%clk 01:29:45]} {[%emt 00:01:09]} 7. Nbd2 {[%clk 01:27:33]}
{[%emt 00:00:14]} Re8 {[%clk 01:29:16]} {[%emt 00:00:58]} 8. cxd5 {[%clk
01:22:23]} {[%emt 00:05:40]} cxd5 {[%clk 01:29:28]} {[%emt 00:00:19]} 9. e4
{[%clk 01:21:22]} {[%emt 00:01:31]} dxe4 {[%clk 01:20:11]} {[%emt 00:09:45]} 10.
dxe4 {[%clk 01:21:46]} {[%emt 00:00:08]} Nc6 {[%clk 01:20:23]} {[%emt
00:00:17]} 11. Re1 {[%clk 01:17:18]} {[%emt 00:04:58]} e5 {[%clk 01:18:02]}
{[%emt 00:02:51]} 12. b3 {[%clk 01:13:59]} {[%emt 00:03:49]} Bg4 {[%clk
01:16:12]} {[%emt 00:02:22]} 13. Bb2 {[%clk 01:13:25]} {[%emt 00:01:02]} Nb4
{[%clk 00:53:05]} {[%emt 00:23:37]} 14. Qb1 {[%clk 01:01:03]} {[%emt 00:12:52]}
Rc8 {[%clk 00:35:19]} {[%emt 00:18:16]} 15. Rd1 {[%clk 00:59:20]} {[%emt
00:02:14]} Qd3 {[%clk 00:33:44]} {[%emt 00:02:03]} 16. Qxd3 {[%clk 00:55:18]}
{[%emt 00:04:32]} Nxd3 {[%clk 00:34:02]} {[%emt 00:00:13]} 17. Ba3 {[%clk
00:55:34]} {[%emt 00:00:15]} Rc2 {[%clk 00:33:17]} {[%emt 00:01:15]} 18. Rf1
{[%clk 00:46:14]} {[%emt 00:09:49]} b5 {[%clk 00:21:23]} {[%emt 00:12:27]} 19.
h3 {[%clk 00:45:19]} {[%emt 00:01:24]} Bc8 {[%clk 00:12:09]} {[%emt 00:09:43]}
20. Rad1 {[%clk 00:40:54]} {[%emt 00:04:56]} Bh6 {[%clk 00:10:41]} {[%emt
00:01:58]} 21. Nb1 {[%clk 00:35:11]} {[%emt 00:06:13]} Nxf2 {[%clk 00:10:28]}
{[%emt 00:00:42]} 22. Rxf2 {[%clk 00:35:36]} {[%emt 00:00:05]} Be3 {[%clk
00:10:53]} {[%emt 00:00:06]} 23. Nfd2 {[%clk 00:35:58]} {[%emt 00:00:09]} Rxa2
{[%clk 00:09:05]} {[%emt 00:02:16]} 24. Kf1 {[%clk 00:35:32]} {[%emt 00:00:57]}
Bxf2 {[%clk 00:09:26]} {[%emt 00:00:08]} 25. Kxf2 {[%clk 00:35:59]} {[%emt
00:00:03]} Bb7 {[%clk 00:09:09]} {[%emt 00:00:47]} 26. Ke3 {[%clk 00:35:56]}
{[%emt 00:00:34]} Nh5 {[%clk 00:08:18]} {[%emt 00:01:21]} 27. Bc5 {[%clk
00:30:18]} {[%emt 00:06:09]} Rc8 {[%clk 00:05:48]} {[%emt 00:02:59]} 28. b4
{[%clk 00:30:41]} {[%emt 00:00:09]} a5 {[%clk 00:05:51]} {[%emt 00:00:25]} 29.
Bf3 {[%clk 00:30:29]} {[%emt 00:00:42]} Ng7 {[%clk 00:04:10]} {[%emt 00:02:11]}
30. Nb3 {[%clk 00:28:57]} {[%emt 00:02:04]} axb4 {[%clk 00:04:14]} {[%emt
00:00:25]} 31. Bxb4 {[%clk 00:29:04]} {[%emt 00:00:23]} Rb2 {[%clk 00:04:18]}
{[%emt 00:00:27]} 32. N1d2 {[%clk 00:28:57]} {[%emt 00:00:37]} Ne6 {[%clk
00:04:21]} {[%emt 00:00:26]} 33. Bg4 {[%clk 00:28:58]} {[%emt 00:00:30]} Rd8
{[%clk 00:03:57]} {[%emt 00:00:54]} 34. Bxe6 {[%clk 00:28:59]} {[%emt
00:00:29]} fxe6 {[%clk 00:04:17]} {[%emt 00:00:10]} 35. Rb1 {[%clk 00:25:50]}
{[%emt 00:03:39]} Rxb1 {[%clk 00:04:22]} {[%emt 00:00:25]} 36. Nxb1 {[%clk
00:26:17]} {[%emt 00:00:03]} Rd1 {[%clk 00:01:17]} {[%emt 00:03:35]} 37. N1d2
{[%clk 00:26:20]} {[%emt 00:00:27]} Kf7 {[%clk 00:01:13]} {[%emt 00:00:33]} 38.
Nc5 {[%clk 00:25:21]} {[%emt 00:01:30]} Bc8 {[%clk 00:00:42]} {[%emt 00:01:01]}
39. Nd3 {[%clk 00:25:44]} {[%emt 00:00:06]} Rh1 {[%clk 00:01:01]} {[%emt
00:00:12]} 40. h4 {[%clk 00:26:00]} {[%emt 00:00:14]} Bb7 {[%emt 00:01:00]} 41.
Nxe5+ {[%clk 00:25:23]} {[%emt 00:01:06]} Kf6 {[%clk 00:30:06]} {[%emt
00:00:55]} 42. Nd7+ {[%clk 00:52:25]} {[%emt 00:03:28]} Kf7 {[%clk 00:30:15]}
{[%emt 00:00:21]} 43. Nc5 {[%clk 00:52:14]} {[%emt 00:00:42]} Bc8 {[%clk
00:30:12]} {[%emt 00:00:32]} 44. Nd3 {[%clk 00:52:29]} {[%emt 00:00:15]} Rd1
{[%clk 00:29:10]} {[%emt 00:01:30]} 45. Nc5 {[%clk 00:51:11]} {[%emt 00:01:50]}
Rg1 {[%clk 00:27:45]} {[%emt 00:01:54]} 46. Kf4 {[%clk 00:49:48]} {[%emt
00:01:54]} h6 {[%clk 00:20:37]} {[%emt 00:07:37]} 47. Nf3 {[%clk 00:46:05]}
{[%emt 00:04:14]} Rf1 {[%clk 00:20:10]} {[%emt 00:00:57]} 48. Ke3 {[%clk
00:46:04]} {[%emt 00:00:30]} Rb1 {[%clk 00:20:35]} {[%emt 00:00:07]} 49. Ne5+
{[%clk 00:46:08]} {[%emt 00:00:25]} Kg7 {[%clk 00:20:31]} {[%emt 00:00:34]} 50.
Ned3 {[%clk 00:46:12]} {[%emt 00:00:26]} Rg1 {[%clk 00:20:42]} {[%emt
00:00:18]} 51. Bc3+ {[%clk 00:45:28]} {[%emt 00:01:15]} Kh7 {[%clk 00:21:11]}
{[%emt 00:00:02]} 52. Be5 {[%clk 00:45:22]} {[%emt 00:00:36]} g5 {[%clk
00:17:54]} {[%emt 00:03:48]} 53. hxg5 {[%clk 00:45:06]} {[%emt 00:00:44]} hxg5
{[%clk 00:18:22]} {[%emt 00:00:02]} 54. Kd4 {[%clk 00:36:35]} {[%emt 00:09:02]}
Rd1 {[%clk 00:16:37]} {[%emt 00:02:15]} 55. Kc3 {[%clk 00:36:35]} {[%emt
00:00:31]} Kg6 {[%clk 00:16:48]} {[%emt 00:00:18]} 56. Kb4 {[%clk 00:32:52]}
{[%emt 00:04:13]} Rb1+ {[%clk 00:14:38]} {[%emt 00:02:41]} 57. Nb2 {[%clk
00:29:04]} {[%emt 00:04:18]} Kh5 {[%clk 00:13:04]} {[%emt 00:02:04]} 58. Kxb5
{[%clk 00:28:43]} {[%emt 00:00:52]} Kg4 {[%clk 00:08:09]} {[%emt 00:05:23]} 59.
Kc4 {[%clk 00:27:09]} {[%emt 00:02:04]} Kf3 {[%clk 00:04:22]} {[%emt 00:04:17]}
60. Kd3 {[%clk 00:22:45]} {[%emt 00:04:53]} Ra1 {[%clk 00:04:33]} {[%emt
00:00:20]} 61. Nc4 {[%clk 00:22:22]} {[%emt 00:00:52]} Rc1 {[%clk 00:03:02]}
{[%emt 00:02:00]} 62. Bf6 {[%clk 00:15:42]} {[%emt 00:07:12]} Kxg3 {[%clk
00:02:08]} {[%emt 00:01:23]} 63. Bxg5 {[%clk 00:16:04]} {[%emt 00:00:09]} Rd1+
{[%emt 00:00:50]} 64. Bd2 {[%clk 00:16:04]} e5 {[%clk 00:00:40]} {[%emt
00:02:07]} 65. Nxe5 {[%clk 00:15:14]} {[%emt 00:01:20]} Bh3 {[%clk 00:00:38]}
{[%emt 00:00:33]} 66. Nc4 {[%clk 00:15:18]} {[%emt 00:00:27]} Bf1+ {[%clk
00:00:36]} {[%emt 00:00:32]} 67. Kc2 {[%clk 00:15:22]} {[%emt 00:00:25]} Ra1
{[%clk 00:01:01]} {[%emt 00:00:06]} 68. Ne3 {[%clk 00:12:48]} {[%emt 00:03:04]}
Bh3 {[%clk 00:01:04]} {[%emt 00:00:26]} 69. Kd3 {[%clk 00:12:44]} {[%emt
00:00:34]} Ra8 {[%clk 00:00:47]} {[%emt 00:00:47]} 70. Bc3 {[%clk 00:12:11]}
{[%emt 00:01:03]} Rd8+ {[%clk 00:01:08]} {[%emt 00:00:09]} 71. Bd4 {[%clk
00:12:35]} {[%emt 00:00:07]} Kf4 {[%clk 00:01:12]} {[%emt 00:00:25]} 72. Nd5+
{[%clk 00:12:51]} {[%emt 00:00:15]} Kf3 {[%clk 00:00:54]} {[%emt 00:00:47]} 73.
Bf6 {[%clk 00:11:14]} {[%emt 00:02:07]} Rd6 {[%clk 00:00:36]} {[%emt 00:00:48]}
74. Kd4 {[%clk 00:11:12]} {[%emt 00:00:33]} Rc6 {[%clk 00:00:34]} {[%emt
00:00:32]} 75. e5 {[%clk 00:10:05]} {[%emt 00:01:36]} Kg4 {[%clk 00:00:35]}
{[%emt 00:00:29]} 76. Ne3 {[%clk 00:10:05]} {[%emt 00:00:30]} Kf3 {[%clk
00:00:39]} {[%emt 00:00:26]} 77. Nc4 {[%clk 00:09:22]} {[%emt 00:01:12]} Kf4
{[%clk 00:00:42]} {[%emt 00:00:27]} 78. Nd6 {[%clk 00:09:33]} {[%emt 00:00:21]}
Rb6 {[%clk 00:00:34]} {[%emt 00:00:39]} 79. Kd5 {[%clk 00:09:33]} {[%emt
00:00:29]} Rb1 {[%clk 00:00:35]} {[%emt 00:00:29]} 80. Kc6 {[%clk 00:08:49]}
{[%emt 00:01:13]} Rc1 {[%clk 00:01:02]} {[%emt 00:00:03]} 81. Kd5 {[%clk
00:06:22]} {[%emt 00:02:59]} Rd1+ {[%clk 00:01:23]} {[%emt 00:00:09]} 82. Kc4
{[%clk 00:06:40]} {[%emt 00:00:10]} Bf1+ {[%clk 00:01:33]} {[%emt 00:00:20]} 83.
Kb4 {[%clk 00:06:17]} {[%emt 00:00:53]} Rb1+ {[%clk 00:00:53]} {[%emt
00:01:11]} 84. Nb3 {[%clk 00:05:31]} {[%emt 00:01:16]} Bh3 {[%clk 00:01:13]}
{[%emt 00:00:10]} 85. Kc3 {[%clk 00:05:37]} {[%emt 00:00:25]} Re1 {[%clk
00:00:47]} {[%emt 00:00:55]} 86. Nc5 {[%clk 00:05:01]} {[%emt 00:01:08]} Rc1+
{[%clk 00:01:09]} {[%emt 00:00:07]} 87. Kd4 {[%clk 00:05:15]} {[%emt 00:00:16]}
Rd1+ {[%clk 00:00:33]} {[%emt 00:01:05]} 88. Nd3 {[%clk 00:05:38]} {[%emt
00:00:07]} Kf3 {[%clk 00:00:58]} {[%emt 00:00:04]} 89. Kc3 {[%clk 00:05:49]}
{[%emt 00:00:20]} Be6 {[%clk 00:01:11]} {[%emt 00:00:15]} 90. Nb5 {[%clk
00:05:49]} {[%emt 00:00:32]} Bh3 {[%clk 00:00:31]} {[%emt 00:01:09]} 91. Nd4
{[%clk 00:06:04]} {[%emt 00:00:15]} Kg3 {[%clk 00:00:33]} {[%emt 00:00:30]} 92.
Ne2 {[%clk 00:05:51]} {[%emt 00:00:43]} Kf3 {[%clk 00:00:46]} {[%emt 00:00:16]}
93. Nd4 {[%clk 00:06:02]} {[%emt 00:00:21]} Kg2 {[%clk 00:01:12]} {[%emt
00:00:03]} 94. Nf4+ {[%clk 00:06:20]} {[%emt 00:00:12]} Kg3 {[%clk 00:01:35]}
{[%emt 00:00:06]} 95. Nxh3 {[%clk 00:06:39]} {[%emt 00:00:13]} Kxh3 {[%clk
00:02:04]} 96. Kc4 {[%clk 00:06:43]} {[%emt 00:00:26]} Re1 {[%clk 00:02:24]}
{[%emt 00:00:09]} 97. Kd5 {[%clk 00:07:08]} {[%emt 00:00:06]} Kg2 {[%clk
00:02:32]} {[%emt 00:00:19]} 98. e6 {[%clk 00:07:33]} {[%emt 00:00:07]} Rxe6
{[%clk 00:02:56]} {[%emt 00:00:06]} 99. Kxe6 {[%clk 00:07:57]} {[%emt
00:00:06]} Kg3 {[%clk 00:03:21]} {[%emt 00:00:05]} 100. Kf5 {[%clk 00:08:22]}
{[%emt 00:00:04]} Kg2 {[%clk 00:03:45]} {[%emt 00:00:07]} 101. Ke4 {[%clk
00:08:37]} {[%emt 00:00:15]} Kg3 {[%clk 00:04:03]} {[%emt 00:00:11]} 102. Be5+
{[%clk 00:08:58]} {[%emt 00:00:10]} Kg2 {[%clk 00:04:27]} {[%emt 00:00:05]} 103.
Bf4 {[%clk 00:09:18]} {[%emt 00:00:11]} Kf2 {[%clk 00:04:50]} {[%emt 00:00:07]}
104. Nf5 {[%clk 00:09:39]} {[%emt 00:00:09]} Kg2 {[%clk 00:05:13]} {[%emt
00:00:08]} 105. Be3 {[%clk 00:09:04]} {[%emt 00:01:04]} Kh3 {[%clk 00:05:21]}
{[%emt 00:00:22]} 106. Kf3 {[%clk 00:09:24]} {[%emt 00:00:10]} Kh2 {[%clk
00:05:40]} {[%emt 00:00:10]} 107. Ng3 {[%clk 00:09:39]} {[%emt 00:00:15]} Kh3
{[%clk 00:06:02]} {[%emt 00:00:08]} 108. Bg1 {[%clk 00:09:58]} {[%emt
00:00:12]} Kh4 {[%emt 00:00:21]} 109. Ne4 {[%clk 00:10:10]} {[%emt 00:00:01]}
Kh5 {[%clk 00:06:30]} {[%emt 00:00:27]} 110. Kf4 {[%clk 00:10:30]} {[%emt
00:00:10]} Kg6 {[%clk 00:06:52]} {[%emt 00:00:07]} 111. Ng5 {[%clk 00:10:54]}
{[%emt 00:00:06]} Kf6 {[%clk 00:07:09]} {[%emt 00:00:13]} 112. Bc5 {[%clk
00:11:15]} {[%emt 00:00:08]} Kg6 {[%clk 00:07:28]} {[%emt 00:00:11]} 113. Bd4
{[%clk 00:10:51]} {[%emt 00:00:55]} Kh5 {[%clk 00:07:39]} {[%emt 00:00:19]} 114.
Kf5 {[%clk 00:11:09]} {[%emt 00:00:12]} Kh4 {[%clk 00:08:03]} {[%emt 00:00:06]}
115. Bf2+ {[%clk 00:11:35]} {[%emt 00:00:05]} Kh5 {[%clk 00:08:29]} {[%emt
00:00:05]} 116. Bg3 {[%clk 00:11:59]} {[%emt 00:00:04]} Kh6 {[%clk 00:08:55]}
{[%emt 00:00:04]} 117. Ne6 {[%clk 00:12:18]} {[%emt 00:00:09]} Kh7 {[%clk
00:08:48]} {[%emt 00:00:38]} 118. Kg5 {[%clk 00:12:35]} {[%emt 00:00:13]} Kh8
{[%clk 00:08:23]} {[%emt 00:00:56]} 119. Kg6 {[%clk 00:12:58]} {[%emt
00:00:07]} Kg8 {[%clk 00:08:49]} {[%emt 00:00:05]} 120. Bd6 {[%clk 00:13:13]}
{[%emt 00:00:13]} Kh8 {[%clk 00:09:14]} {[%emt 00:00:06]} 121. Nd4 {[%clk
00:13:12]} {[%emt 00:00:31]} Kg8 {[%clk 00:09:37]} {[%emt 00:00:08]} 122. Nf5
{[%clk 00:13:31]} {[%emt 00:00:10]} Kh8 {[%clk 00:09:58]} {[%emt 00:00:08]} 123.
Bf8 {[%clk 00:13:48]} {[%emt 00:00:14]} Kg8 {[%clk 00:10:21]} {[%emt 00:00:07]}
124. Bh6 {[%clk 00:14:13]} {[%emt 00:00:05]} 1-0

[Event "Schack-SM 2024: Mastarklassen"]
[Site "Fortnox Arena, Hejaregatan 5, Vaxjo, Sweden"]
[Date "2024.07.03"]
[Round "5.2"]
[White "Collett, Peter"]
[Black "Muntean, Victor"]
[Result "0-1"]
[TimeControl "90 minutes for 40 moves + 30 minutes for the rest of the game + 30 seconds per move from move one."]
[WhiteTitle "CM"]
[WhiteElo "2116"]
[BlackElo "2136"]

1. d4 {[%clk 01:30:56]} {[%emt 00:00:03]} Nf6 {[%clk 01:30:56]} {[%emt
00:00:06]} 2. c4 {[%clk 01:31:17]} {[%emt 00:00:08]} g6 {[%clk 01:31:21]}
{[%emt 00:00:06]} 3. Nc3 {[%clk 01:31:40]} {[%emt 00:00:06]} Bg7 {[%clk
01:31:46]} {[%emt 00:00:05]} 4. e4 {[%clk 01:32:01]} {[%emt 00:00:09]} d6
{[%clk 01:32:10]} {[%emt 00:00:06]} 5. f3 {[%clk 01:32:24]} {[%emt 00:00:07]}
O-O {[%clk 01:32:34]} {[%emt 00:00:06]} 6. Bg5 {[%clk 01:32:49]} {[%emt
00:00:04]} Nc6 {[%clk 01:32:56]} {[%emt 00:00:09]} 7. Nge2 {[%clk 01:32:44]}
{[%emt 00:00:35]} a6 {[%clk 01:33:13]} {[%emt 00:00:13]} 8. Qd2 {[%clk
01:32:49]} {[%emt 00:00:24]} Rb8 {[%clk 01:33:34]} {[%emt 00:00:09]} 9. Rc1
{[%clk 01:32:26]} {[%emt 00:00:52]} Bd7 {[%clk 01:33:58]} {[%emt 00:00:07]} 10.
Nd1 {[%clk 01:27:26]} {[%emt 00:05:30]} b5 {[%clk 01:30:54]} {[%emt 00:03:35]}
11. c5 {[%clk 01:26:27]} {[%emt 00:01:29]} d5 {[%clk 01:31:14]} {[%emt
00:00:10]} 12. e5 {[%clk 01:16:44]} {[%emt 00:10:12]} Ne8 {[%clk 01:31:34]}
{[%emt 00:00:11]} 13. g3 {[%clk 01:16:57]} {[%emt 00:00:17]} f6 {[%clk
01:23:55]} {[%emt 00:08:09]} 14. exf6 {[%clk 01:09:49]} {[%emt 00:07:38]} Nxf6
{[%clk 01:19:40]} {[%emt 00:04:46]} 15. Bg2 {[%clk 01:07:41]} {[%emt 00:02:38]}
e5 {[%clk 01:15:03]} {[%emt 00:05:08]} 16. O-O {[%clk 00:58:26]} {[%emt
00:09:43]} exd4 {[%clk 01:05:45]} {[%emt 00:09:50]} 17. Nxd4 {[%clk 00:57:03]}
{[%emt 00:01:52]} Nxd4 {[%clk 01:05:58]} {[%emt 00:00:18]} 18. Qxd4 {[%clk
00:57:01]} {[%emt 00:00:32]} Bc6 {[%clk 01:02:23]} {[%emt 00:04:05]} 19. Qd2
{[%clk 00:49:49]} {[%emt 00:07:41]} d4 {[%clk 00:57:58]} {[%emt 00:04:57]} 20.
Nf2 {[%clk 00:45:55]} {[%emt 00:04:21]} Qd7 {[%clk 00:52:32]} {[%emt 00:05:57]}
21. Rfe1 {[%clk 00:23:52]} {[%emt 00:22:33]} Rbe8 {[%clk 00:50:48]} {[%emt
00:02:15]} 22. Rxe8 {[%clk 00:15:17]} {[%emt 00:09:04]} Rxe8 {[%clk 00:51:10]}
{[%emt 00:00:09]} 23. Re1 {[%clk 00:15:28]} {[%emt 00:00:19]} Rxe1+ {[%clk
00:44:52]} {[%emt 00:06:48]} 24. Qxe1 {[%clk 00:15:50]} {[%emt 00:00:09]} h6
{[%clk 00:45:02]} {[%emt 00:00:19]} 25. Bxf6 {[%clk 00:11:58]} {[%emt
00:04:21]} Bxf6 {[%clk 00:44:49]} {[%emt 00:00:45]} 26. Bh3 {[%clk 00:12:19]}
{[%emt 00:00:08]} Qe7 {[%clk 00:43:32]} {[%emt 00:01:47]} 27. Qxe7 {[%clk
00:09:33]} {[%emt 00:03:16]} Bxe7 {[%clk 00:43:57]} {[%emt 00:00:06]} 28. Ne4
{[%clk 00:09:34]} {[%emt 00:00:28]} b4 {[%clk 00:21:05]} {[%emt 00:23:23]} 29.
Kf2 {[%clk 00:04:41]} {[%emt 00:05:22]} Kf7 {[%clk 00:20:51]} {[%emt 00:00:44]}
30. Ke2 {[%clk 00:04:43]} {[%emt 00:00:27]} Bb5+ {[%clk 00:16:52]} {[%emt
00:04:31]} 31. Kd2 {[%clk 00:05:01]} {[%emt 00:00:11]} h5 {[%clk 00:11:17]}
{[%emt 00:06:07]} 32. Bc8 {[%clk 00:02:48]} {[%emt 00:02:42]} a5 {[%clk
00:11:01]} {[%emt 00:00:47]} 33. f4 {[%clk 00:02:30]} {[%emt 00:00:46]} a4
{[%clk 00:10:55]} {[%emt 00:00:36]} 34. b3 {[%clk 00:02:07]} {[%emt 00:00:53]}
a3 {[%clk 00:11:18]} {[%emt 00:00:08]} 35. c6 {[%clk 00:01:16]} {[%emt
00:01:21]} Bxc6 {[%clk 00:11:19]} {[%emt 00:00:30]} 36. Kd3 {[%clk 00:01:37]}
{[%emt 00:00:07]} Bd5 {[%clk 00:11:35]} {[%emt 00:00:15]} 37. Nd2 {[%clk
00:00:42]} {[%emt 00:01:24]} c5 {[%clk 00:10:53]} {[%emt 00:01:13]} 38. Bd7
{[%clk 00:00:49]} {[%emt 00:00:24]} g5 {[%clk 00:10:35]} {[%emt 00:00:49]} 39.
fxg5 {[%clk 00:00:49]} {[%emt 00:00:28]} Bxg5 {[%clk 00:10:53]} {[%emt
00:00:12]} 40. Nc4 {[%clk 00:01:14]} {[%emt 00:00:06]} Kf6 {[%clk 00:10:38]}
{[%emt 00:00:44]} 41. h4 {[%clk 00:30:27]} {[%emt 00:01:17]} Bh6 {[%clk
00:39:49]} {[%emt 00:01:20]} 42. g4 {[%clk 00:30:14]} {[%emt 00:00:42]} hxg4
{[%clk 00:38:58]} {[%emt 00:01:16]} 43. Bxg4 {[%clk 00:30:27]} {[%emt
00:00:22]} Bg8 {[%clk 00:39:04]} {[%emt 00:00:24]} 44. Bf3 {[%clk 00:29:33]}
{[%emt 00:01:24]} Kf5 {[%clk 00:39:16]} {[%emt 00:00:18]} 45. Be4+ {[%clk
00:18:37]} {[%emt 00:11:25]} Kf4 {[%clk 00:39:07]} {[%emt 00:00:40]} 46. Bg6
{[%clk 00:18:24]} {[%emt 00:00:43]} Kg3 {[%clk 00:33:32]} {[%emt 00:06:06]} 47.
h5 {[%clk 00:14:18]} {[%emt 00:04:36]} Kf2 {[%clk 00:33:46]} {[%emt 00:00:16]}
48. Na5 {[%clk 00:08:54]} {[%emt 00:05:54]} Ke1 {[%clk 00:33:35]} {[%emt
00:00:41]} 49. Kc2 {[%clk 00:09:14]} {[%emt 00:00:09]} Bd5 {[%clk 00:33:28]}
{[%emt 00:00:37]} 50. Nc4 {[%clk 00:07:10]} {[%emt 00:02:35]} Bf3 {[%clk
00:33:46]} {[%emt 00:00:12]} 51. Ne5 {[%clk 00:06:55]} {[%emt 00:00:44]} Bd1+
{[%clk 00:32:53]} {[%emt 00:01:24]} 52. Kb1 {[%clk 00:06:51]} {[%emt 00:00:34]}
Kd2 {[%clk 00:32:33]} {[%emt 00:00:48]} 53. Nf7 {[%clk 00:06:22]} {[%emt
00:01:01]} Be3 {[%clk 00:32:29]} {[%emt 00:00:34]} 54. h6 {[%clk 00:05:35]}
{[%emt 00:01:17]} d3 {[%clk 00:32:42]} {[%emt 00:00:17]} 55. Bxd3 {[%clk
00:05:47]} {[%emt 00:00:18]} Kxd3 {[%clk 00:32:46]} {[%emt 00:00:25]} 56. Ne5+
{[%clk 00:06:10]} {[%emt 00:00:08]} Kc3 {[%clk 00:33:02]} {[%emt 00:00:14]} 57.
h7 {[%clk 00:03:13]} {[%emt 00:03:27]} Bc2+ {[%clk 00:33:26]} {[%emt 00:00:06]}
58. Ka1 {[%clk 00:03:33]} {[%emt 00:00:08]} Bc1 {[%clk 00:33:46]} {[%emt
00:00:11]} 59. Nd3 {[%clk 00:03:37]} {[%emt 00:00:28]} Bb2+ {[%clk 00:34:10]}
{[%emt 00:00:05]} 60. Nxb2 {[%clk 00:04:02]} {[%emt 00:00:06]} axb2# {[%clk
00:34:36]} {[%emt 00:00:03]} 0-1

[Event "Schack-SM 2024: Mastarklassen"]
[Site "Fortnox Arena, Hejaregatan 5, Vaxjo, Sweden"]
[Date "2024.07.03"]
[Round "5.3"]
[White "Mashhadi, Peyman"]
[Black "Nygren, David"]
[Result "1-0"]
[TimeControl "90 minutes for 40 moves + 30 minutes for the rest of the game + 30 seconds per move from move one."]
[WhiteElo "2116"]
[BlackElo "2132"]

1. d4 {[%clk 01:30:48]} {[%emt 00:00:11]} Nf6 {[%clk 01:30:39]} {[%emt
00:00:23]} 2. Nf3 {[%clk 01:30:48]} {[%emt 00:00:29]} e6 {[%clk 01:30:29]}
{[%emt 00:00:40]} 3. c4 {[%clk 01:30:20]} {[%emt 00:00:57]} c5 {[%clk
01:30:33]} {[%emt 00:00:28]} 4. d5 {[%clk 01:30:08]} {[%emt 00:00:42]} exd5
{[%clk 01:30:51]} {[%emt 00:00:12]} 5. cxd5 {[%clk 01:30:12]} {[%emt 00:00:24]}
d6 {[%clk 01:31:17]} {[%emt 00:00:06]} 6. Nc3 {[%clk 01:29:39]} {[%emt
00:01:02]} g6 {[%clk 01:31:22]} {[%emt 00:00:26]} 7. Nd2 {[%clk 01:28:27]}
{[%emt 00:01:41]} Nbd7 {[%clk 01:30:30]} {[%emt 00:01:21]} 8. e4 {[%clk
01:27:42]} {[%emt 00:01:16]} a6 {[%clk 01:29:35]} {[%emt 00:01:26]} 9. a4
{[%clk 01:27:35]} {[%emt 00:00:36]} Bg7 {[%clk 01:29:12]} {[%emt 00:00:53]} 10.
Be2 {[%clk 01:27:26]} {[%emt 00:00:37]} O-O {[%clk 01:26:58]} {[%emt 00:02:47]}
11. O-O {[%clk 01:27:34]} {[%emt 00:00:22]} Re8 {[%clk 01:25:19]} {[%emt
00:02:10]} 12. Qc2 {[%clk 01:25:33]} {[%emt 00:02:28]} Rb8 {[%clk 01:22:05]}
{[%emt 00:03:46]} 13. Ra3 {[%clk 01:17:48]} {[%emt 00:08:14]} Qc7 {[%clk
01:16:25]} {[%emt 00:06:10]} 14. a5 {[%clk 01:13:44]} {[%emt 00:04:33]} b5
{[%clk 01:10:02]} {[%emt 00:06:53]} 15. axb6 {[%clk 01:13:38]} {[%emt
00:00:36]} Rxb6 {[%clk 01:09:13]} {[%emt 00:01:20]} 16. Kh1 {[%clk 01:03:06]}
{[%emt 00:11:00]} Qb8 {[%clk 01:02:31]} {[%emt 00:07:12]} 17. Ra2 {[%clk
00:48:33]} {[%emt 00:15:03]} h5 {[%clk 00:55:20]} {[%emt 00:07:43]} 18. h3
{[%clk 00:42:37]} {[%emt 00:06:25]} Nh7 {[%clk 00:50:47]} {[%emt 00:05:02]} 19.
Nc4 {[%clk 00:39:41]} {[%emt 00:03:27]} Rb4 {[%clk 00:49:22]} {[%emt 00:01:57]}
20. Bd2 {[%clk 00:38:27]} {[%emt 00:01:43]} Qc7 {[%clk 00:38:48]} {[%emt
00:11:03]} 21. Na4 {[%clk 00:33:45]} {[%emt 00:05:11]} Rb5 {[%clk 00:37:02]}
{[%emt 00:02:16]} 22. Bd3 {[%clk 00:31:57]} {[%emt 00:02:19]} Bd4 {[%clk
00:23:44]} {[%emt 00:13:49]} 23. f4 {[%clk 00:21:43]} {[%emt 00:10:43]} Ndf8
{[%clk 00:22:30]} {[%emt 00:01:43]} 24. e5 {[%clk 00:18:52]} {[%emt 00:03:21]}
dxe5 {[%clk 00:20:02]} {[%emt 00:02:58]} 25. fxe5 {[%clk 00:19:07]} {[%emt
00:00:15]} Bxh3 {[%clk 00:09:39]} {[%emt 00:10:53]} 26. gxh3 {[%clk 00:17:33]}
{[%emt 00:02:04]} Qd7 {[%clk 00:09:36]} {[%emt 00:00:34]} 27. Bf4 {[%clk
00:16:20]} {[%emt 00:01:43]} Qxh3+ {[%clk 00:07:55]} {[%emt 00:02:11]} 28. Bh2
{[%clk 00:16:36]} {[%emt 00:00:12]} Bxe5 {[%clk 00:06:44]} {[%emt 00:01:43]} 29.
Nxe5 {[%clk 00:16:40]} {[%emt 00:00:25]} Rxe5 {[%clk 00:07:08]} {[%emt
00:00:05]} 30. Qf2 {[%clk 00:09:25]} {[%emt 00:07:44]} Ng5 {[%clk 00:04:26]}
{[%emt 00:03:13]} 31. Ra3 {[%clk 00:09:08]} {[%emt 00:00:48]} Re3 {[%clk
00:04:13]} {[%emt 00:00:43]} 32. Bf5 {[%clk 00:08:18]} {[%emt 00:01:20]} Rxa3
{[%clk 00:02:59]} {[%emt 00:01:44]} 33. Bxh3 {[%clk 00:08:38]} {[%emt
00:00:10]} Rxh3 {[%clk 00:03:07]} {[%emt 00:00:21]} 34. Qg2 {[%clk 00:07:48]}
{[%emt 00:01:21]} Rb4 {[%clk 00:02:28]} {[%emt 00:01:10]} 35. Qxg5 {[%clk
00:07:21]} {[%emt 00:00:56]} Rbh4 {[%clk 00:02:08]} {[%emt 00:00:50]} 36. Rf2
{[%clk 00:07:22]} {[%emt 00:00:29]} Nh7 {[%clk 00:00:45]} {[%emt 00:01:54]} 37.
Qd8+ {[%clk 00:07:26]} {[%emt 00:00:26]} Kg7 {[%clk 00:00:54]} {[%emt
00:00:20]} 38. Qe7 {[%clk 00:07:42]} {[%emt 00:00:13]} Kh6 {[%clk 00:00:40]}
{[%emt 00:00:45]} 39. d6 {[%clk 00:06:51]} {[%emt 00:01:20]} Rxa4 {[%clk
00:00:33]} {[%emt 00:00:38]} 40. d7 {[%clk 00:06:26]} {[%emt 00:00:55]} Rd4
{[%clk 00:00:31]} {[%emt 00:00:32]} 1-0